bitfinex-derivatives/quotes_BTCF0:USTF0_20250811
["timestamp","ask_amount","ask_price","bid_price","bid_amount"]
[1754911872239,1.58187505,120460.0,120450.0,0.17525255]
[1754911873435,0.74423505,120460.0,120450.0,0.17525255]
[1754911873636,1.58003505,120460.0,120450.0,0.16672943]
[1754911873848,1.58003505,120460.0,120450.0,0.11074441]
[1754911874039,1.58003505,120460.0,120450.0,0.05384907]
[1754911874947,0.74423505,120460.0,120450.0,0.05384907]
[1754911875142,1.58007505,120460.0,120450.0,0.05384907]
[1754911876649,0.083031,120450.0,120440.0,0.1113]
[1754911876852,0.0830379,120440.0,120430.0,0.00653609]
[1754911877146,0.98757772,120440.0,120430.0,0.22453609]
[1754911877346,1.11936962,120440.0,120430.0,0.34912795]
[1754911877548,1.95284962,120440.0,120430.0,0.34912795]
[1754911877845,1.95294962,120440.0,120430.0,0.34922795]
[1754911878145,1.95294962,120440.0,120430.0,0.54270226]
[1754911878648,1.95294962,120440.0,120430.0,0.58894226]
[1754911879351,1.11946962,120440.0,120430.0,0.39546795]
[1754911879645,1.95286962,120440.0,120430.0,0.39646795]
[1754911879839,2.01832949,120440.0,120430.0,0.39646795]
[1754911880339,2.01932949,120440.0,120430.0,0.39646795]
[1754911880944,1.18592949,120440.0,120430.0,0.39646795]
[1754911881150,2.01820949,120440.0,120430.0,0.39646795]
[1754911881946,1.42558759,120440.0,120430.0,0.39646795]
[1754911882143,2.01820949,120440.0,120430.0,0.39646795]
[1754911882544,1.18592949,120440.0,120430.0,0.39646795]
[1754911882744,2.01692949,120440.0,120430.0,0.39646795]
[1754911883246,0.59330759,120440.0,120430.0,0.39646795]
[1754911883555,1.72001854,120440.0,120430.0,0.39646795]
[1754911884051,2.01632949,120440.0,120430.0,0.39646795]
[1754911884354,1.18592949,120440.0,120430.0,0.39646795]
[1754911884553,2.01580949,120440.0,120430.0,0.39646795]
[1754911884753,1.18592949,120440.0,120430.0,0.39646795]
[1754911884954,2.01540949,120440.0,120430.0,0.39646795]
[1754911885253,2.01524949,120440.0,120430.0,0.39646795]
[1754911885449,1.18592949,120440.0,120430.0,0.58994226]
[1754911885650,1.42254759,120440.0,120430.0,0.58994226]
[1754911885852,2.01516949,120440.0,120430.0,0.58994226]
[1754911886746,2.01516949,120440.0,120430.0,0.39646795]
[1754911886942,1.18592949,120440.0,120430.0,0.39646795]
[1754911887346,2.01540949,120440.0,120430.0,0.39646795]
[1754911887552,1.97117949,120440.0,120430.0,0.28976795]
[1754911888146,1.93257949,120440.0,120430.0,0.13222795]
[1754911888648,2.07027949,120440.0,120430.0,0.13222795]
[1754911889749,1.24079949,120440.0,120430.0,0.13222795]
[1754911889945,2.06871949,120440.0,120430.0,0.13222795]
[1754911890256,1.24079949,120440.0,120430.0,0.13222795]
[1754911890456,2.06871949,120440.0,120430.0,0.13222795]
[1754911891354,2.06775949,120440.0,120430.0,0.13222795]
[1754911892153,2.06775949,120440.0,120430.0,0.09012329]
[1754911892353,2.06747949,120440.0,120430.0,0.09012329]
[1754911892657,1.24079949,120440.0,120430.0,0.05414089]
[1754911892955,2.06751949,120440.0,120430.0,0.03220729]
[1754911893254,1.24069949,120440.0,120430.0,0.12399868]
[1754911893457,2.16693949,120440.0,120430.0,7e-08]
[1754911893958,0.0830448,120430.0,120420.0,5.524e-05]
[1754911894147,0.0830586,120410.0,120400.0,0.19806424]
[1754911894350,1.20504955,120410.0,120400.0,0.19806424]
[1754911894557,0.37936955,120410.0,120400.0,0.32190525]
[1754911895051,1.20488955,120410.0,120400.0,0.12843094]
[1754911895359,1.20460955,120410.0,120400.0,0.32207726]
[1754911896255,1.56740955,120410.0,120400.0,0.32307726]
[1754911896654,1.56732955,120410.0,120400.0,0.32307726]
[1754911896960,1.57910831,120410.0,120400.0,0.32307726]
[1754911897353,1.57810831,120410.0,120400.0,0.32507726]
[1754911897554,1.57810831,120410.0,120400.0,0.13143094]
[1754911897757,0.75294831,120410.0,120400.0,0.13143094]
[1754911897958,1.57722831,120410.0,120400.0,0.13143094]
[1754911898359,1.57722831,120410.0,120400.0,0.12943094]
[1754911900053,1.91105926,120410.0,120400.0,0.12943094]
[1754911900260,1.0879501,120410.0,120400.0,0.17567094]
[1754911900460,1.9111501,120410.0,120400.0,0.17567094]
[1754911900760,1.0879501,120410.0,120400.0,0.17567094]
[1754911900957,1.9109901,120410.0,120400.0,0.17567094]
[1754911901162,1.9109901,120410.0,120400.0,0.39129094]
[1754911901461,1.1879501,120410.0,120400.0,0.39129094]
[1754911901662,1.9108301,120410.0,120400.0,0.39129094]
[1754911902457,1.9108301,120410.0,120400.0,0.28390094]
[1754911902761,1.0879501,120410.0,120400.0,0.28390094]
[1754911902962,1.9103101,120410.0,120400.0,0.28390094]
[1754911903864,1.9103101,120410.0,120400.0,0.39129094]
[1754911904162,1.9103101,120410.0,120400.0,0.34209094]
[1754911904764,1.9103101,120410.0,120400.0,0.28390094]
[1754911904955,1.9099101,120410.0,120400.0,0.12943094]
[1754911905155,1.0879501,120410.0,120400.0,0.12943094]
[1754911905661,1.9094701,120410.0,120400.0,0.39129094]
[1754911905863,1.0879501,120410.0,120400.0,0.39129094]
[1754911906259,0.1661356,120400.0,120380.0,0.0001]
[1754911906455,0.0830793,120380.0,120370.0,0.37700639]
[1754911906652,0.65158025,120380.0,120370.0,0.48523639]
[1754911906858,0.63807748,120380.0,120370.0,0.78417207]
[1754911907064,1.46067748,120380.0,120370.0,0.69238074]
[1754911907369,1.46067748,120380.0,120370.0,0.33158074]
[1754911907860,0.48273748,120380.0,120370.0,0.33158074]
[1754911908061,1.46362748,120380.0,120370.0,0.33158074]
[1754911908357,1.46342748,120380.0,120370.0,0.41408772]
[1754911908564,1.46342748,120380.0,120370.0,0.49716144]
[1754911908964,1.46318748,120380.0,120370.0,0.41408772]
[1754911909262,1.46518748,120380.0,120370.0,0.41408772]
[1754911909467,0.64350748,120380.0,120370.0,0.41408772]
[1754911909666,1.16871653,120380.0,120370.0,0.41408772]
[1754911909973,1.46502748,120380.0,120370.0,0.41408772]
[1754911910555,1.46502748,120380.0,120370.0,0.41608772]
[1754911910761,0.64350748,120380.0,120370.0,0.41608772]
[1754911911156,1.82526748,120380.0,120370.0,0.14229772]
[1754911911358,1.82526748,120380.0,120370.0,0.19117772]
[1754911911559,0.0830931,120360.0,120350.0,0.11636075]
[1754911911862,1.47586405,120360.0,120350.0,0.430589]
[1754911912261,1.47586405,120360.0,120350.0,1.42590442]
[1754911912262,0.06892,120360.0,120350.0,1.42590442]
[1754911912465,0.00019548,120360.0,120350.0,1.47600394]
[1754911912659,0.82092,120360.0,120350.0,1.34588759]
[1754911912860,0.31708943,120370.0,120350.0,1.64219854]
[1754911913055,0.61340038,120370.0,120360.0,0.3608]
[1754911913461,0.31708943,120370.0,120360.0,0.79207923]
[1754911913660,1.43425852,120370.0,120360.0,0.79207923]
[1754911913963,1.43419852,120370.0,120360.0,0.92856331]
[1754911914565,1.13788757,120370.0,120360.0,0.92856331]
[1754911914765,1.13788757,120370.0,120360.0,1.01165641]
[1754911914766,0.31724757,120370.0,120360.0,1.01165641]
[1754911914967,1.14116757,120370.0,120360.0,1.01165641]
[1754911915167,0.31924757,120370.0,120360.0,0.92856331]
[1754911915469,1.14116757,120370.0,120360.0,0.92856331]
[1754911915666,0.31924757,120370.0,120360.0,0.92856331]
[1754911915865,1.14100757,120370.0,120360.0,0.92856331]
[1754911916058,0.61555852,120370.0,120360.0,0.47925771]
[1754911916264,1.43711852,120370.0,120360.0,0.84005771]
[1754911916466,0.31924757,120370.0,120360.0,0.84005771]
[1754911916666,1.14048757,120370.0,120360.0,1.21946176]
[1754911916865,1.14048757,120370.0,120360.0,1.01099664]
[1754911917066,0.1661485,120390.0,120380.0,0.0830793]
[1754911917267,0.2492277,120390.0,120380.0,0.74019025]
[1754911917471,0.3322778,120400.0,120390.0,0.0830724]
[1754911917769,0.0830655,120400.0,120390.0,1.07243775]
[1754911917966,0.9042255,120400.0,120390.0,0.74211457]
[1754911918171,0.24745144,120400.0,120390.0,0.76964089]
[1754911918370,1.06971144,120400.0,120390.0,0.85280081]
[1754911918567,1.06971144,120400.0,120390.0,0.49200081]
[1754911918568,1.36602239,120400.0,120390.0,0.49200081]
[1754911918773,1.36602239,120400.0,120390.0,0.40128679]
[1754911919070,0.26831144,120400.0,120390.0,1.05839774]
[1754911919266,0.27031144,120400.0,120390.0,0.65151287]
[1754911919464,1.09527144,120400.0,120390.0,0.94782382]
[1754911919661,1.16288605,120400.0,120390.0,0.65518323]
[1754911919866,1.16252605,120400.0,120390.0,0.80412292]
[1754911920067,0.17562605,120400.0,120390.0,1.07592292]
[1754911920374,0.99986605,120400.0,120390.0,1.15899532]
[1754911920872,0.4438473,120430.0,120410.0,0.0830586]
[1754911921067,0.2491305,120440.0,120420.0,0.56811095]
[1754911921368,0.9067648,120430.0,120420.0,0.67502084]
[1754911921567,0.9067648,120430.0,120420.0,0.84587671]
[1754911921568,0.2356848,120430.0,120420.0,0.84587671]
[1754911921772,0.09378126,120430.0,120420.0,1.47382766]
[1754911921974,0.08314861,120430.0,120420.0,1.47382766]
[1754911922165,0.00020381,120430.0,120420.0,1.47392766]
[1754911922472,1.592304,120470.0,120460.0,0.0830241]
[1754911922473,0.1660412,120470.0,120460.0,0.0830241]
[1754911922679,0.1660412,120470.0,120460.0,0.44524]
[1754911922680,0.46235215,120470.0,120460.0,0.44524]
[1754911922874,0.1660412,120470.0,120460.0,0.30201562]
[1754911923078,0.46235215,120470.0,120460.0,0.30201562]
[1754911923380,0.82324083,120470.0,120460.0,0.29177508]
[1754911923676,1.64606083,120470.0,120460.0,0.20883585]
[1754911924071,0.8990968,120470.0,120460.0,0.20883585]
[1754911924377,0.98160195,120470.0,120460.0,0.65264751]
[1754911924578,0.15896195,120470.0,120460.0,0.74657876]
[1754911924778,0.4552729,120470.0,120460.0,0.69616876]
[1754911924980,0.98536195,120470.0,120460.0,0.69716876]
[1754911925173,1.2816729,120470.0,120460.0,0.69716876]
[1754911925567,1.2795529,120470.0,120460.0,0.33836876]
[1754911925875,1.6403529,120470.0,120460.0,0.24443751]
[1754911926081,1.6392329,120470.0,120460.0,0.12739585]
[1754911926386,1.6401929,120470.0,120460.0,0.12739585]
[1754911926566,0.8180729,120470.0,120460.0,0.12739585]
[1754911926879,1.65901441,120470.0,120460.0,0.12739585]
[1754911927067,0.83689441,120470.0,120460.0,0.12739585]
[1754911927578,1.65917441,120470.0,120460.0,0.12739585]
[1754911927772,1.65909441,120470.0,120460.0,0.12739585]
[1754911927971,1.29729441,120470.0,120460.0,0.12439585]
[1754911928280,0.84189441,120470.0,120460.0,0.12539585]
[1754911928479,1.6450329,120470.0,120460.0,0.20840751]
[1754911928780,0.98780195,120470.0,120460.0,0.29875836]
[1754911928981,0.4582729,120470.0,120460.0,0.20740751]
[1754911929168,1.2810729,120470.0,120460.0,0.20840751]
[1754911929372,0.4592729,120470.0,120460.0,0.20840751]
[1754911929574,0.16296195,120470.0,120460.0,0.20840751]
[1754911929771,0.98756195,120470.0,120460.0,0.20840751]
[1754911929979,1.2838729,120470.0,120460.0,0.20840751]
[1754911930286,0.33200195,120470.0,120460.0,0.26985751]
[1754911930576,1.26292195,120470.0,120460.0,0.35712505]
[1754911930777,0.78752471,120470.0,120460.0,0.35712505]
[1754911930981,1.61168471,120470.0,120460.0,0.35712505]
[1754911931382,1.60868471,120470.0,120460.0,0.35712505]
[1754911931682,0.78752471,120470.0,120460.0,0.20840751]
[1754911931878,0.43848195,120470.0,120460.0,0.20840751]
[1754911932068,0.43848195,120470.0,120460.0,0.26985751]
[1754911932269,0.06610774,120470.0,120460.0,0.99014965]
[1754911932473,0.06910774,120470.0,120460.0,0.99014965]
[1754911932680,0.02074,120490.0,120470.0,0.2490415]
[1754911932887,0.08852321,120490.0,120480.0,1.35833285]
[1754911933177,0.08852321,120490.0,120480.0,1.51112691]
[1754911933178,0.04479321,120490.0,120480.0,1.51112691]
[1754911933372,0.87099,120510.0,120500.0,0.0829966]
[1754911933573,0.0829866,120520.0,120510.0,0.0829897]
[1754911933774,0.1305294,120530.0,120520.0,0.0829828]
[1754911933983,0.0830794,120530.0,120520.0,0.82152556]
[1754911934277,0.21868968,120550.0,120540.0,0.0829691]
[1754911934477,0.02593598,120550.0,120540.0,1.16446186]
[1754911934681,0.10889818,120550.0,120540.0,1.67436507]
[1754911934877,0.09077214,120550.0,120540.0,1.67436507]
[1754911935082,0.17373434,120550.0,120540.0,1.67436507]
[1754911935280,0.15310173,120550.0,120540.0,1.67436507]
[1754911935479,0.07750557,120550.0,120540.0,1.67446507]
[1754911935682,0.00019739,120550.0,120540.0,1.67446507]
[1754911935877,0.00119739,120550.0,120540.0,1.67446507]
[1754911936087,0.2488409,120580.0,120570.0,0.0829484]
[1754911936380,0.06673299,120600.0,120590.0,0.0829307]
[1754911936580,0.1512109,120600.0,120590.0,1.07064276]
[1754911936775,0.1512109,120600.0,120590.0,1.6207383]
[1754911936978,0.15128224,120600.0,120590.0,1.27169554]
[1754911937279,0.15138224,120600.0,120590.0,1.19396084]
[1754911937476,0.24642224,120600.0,120590.0,1.19396084]
[1754911937874,0.24642224,120600.0,120590.0,0.66221284]
[1754911938185,0.24642224,120600.0,120590.0,0.66496284]
[1754911938380,1.07106224,120600.0,120590.0,0.66496284]
[1754911938582,0.24642224,120600.0,120590.0,0.30141284]
[1754911938774,1.420545,120600.0,120590.0,0.30141284]
[1754911939284,1.07146224,120600.0,120590.0,0.30141284]
[1754911939480,0.24642224,120600.0,120590.0,0.66731284]
[1754911939676,1.07234224,120600.0,120590.0,0.67031284]
[1754911940088,1.07234224,120600.0,120590.0,0.30951284]
[1754911940688,1.07234224,120600.0,120590.0,0.67031284]
[1754911940884,0.19650117,120600.0,120590.0,0.75324754]
[1754911941087,1.02122117,120600.0,120590.0,0.91609554]
[1754911941381,0.00117134,120600.0,120590.0,1.26623878]
[1754911941587,0.06696,120620.0,120610.0,0.0829209]
[1754911941784,0.02072,120620.0,120610.0,1.32329966]
[1754911941985,0.0829073,120630.0,120620.0,0.248727]
[1754911942189,0.1291431,120640.0,120630.0,0.0829071]
[1754911942379,0.04624,120640.0,120630.0,0.4476271]
[1754911942576,0.04624,120640.0,120630.0,0.83136301]
[1754911942577,0.04632004,120640.0,120630.0,0.83136301]
[1754911942780,0.00018004,120640.0,120630.0,1.18050577]
[1754911942980,0.00018004,120640.0,120630.0,1.26341419]
[1754911943282,0.00018004,120640.0,120630.0,2.09253419]
[1754911943482,0.00018004,120640.0,120630.0,1.26341419]
[1754911943682,0.00018004,120640.0,120630.0,0.91437143]
[1754911943886,0.00018004,120640.0,120630.0,1.26341419]
[1754911944079,0.0001,120640.0,120630.0,1.26341419]
[1754911944282,0.02072,120650.0,120640.0,0.0829002]
[1754911944487,0.04624,120660.0,120650.0,0.1657788]
[1754911944688,0.3550801,120670.0,120660.0,0.0828865]
[1754911944881,0.2948901,120670.0,120660.0,0.79646926]
[1754911945087,0.4106601,120670.0,120660.0,0.665579]
[1754911945287,0.41075318,120670.0,120660.0,0.665579]
[1754911945592,0.32796788,120670.0,120660.0,0.74855307]
[1754911945794,0.39542457,120670.0,120660.0,0.74855307]
[1754911946095,0.32796788,120670.0,120660.0,0.74855307]
[1754911946294,0.32796788,120670.0,120660.0,0.66566657]
[1754911946488,0.32796788,120670.0,120660.0,0.74855307]
[1754911947388,0.33096788,120670.0,120660.0,0.74955307]
[1754911948192,0.27077788,120670.0,120660.0,0.66292657]
[1754911948395,0.33296788,120670.0,120660.0,0.66292657]
[1754911948694,1.51321064,120670.0,120660.0,0.30212657]
[1754911948895,1.16396788,120670.0,120660.0,0.20876042]
[1754911949092,1.12559644,120670.0,120650.0,0.4107]
[1754911949289,1.0856564,120660.0,120650.0,0.0499]
[1754911949488,1.43469916,120660.0,120650.0,0.17396954]
[1754911949787,1.43469916,120660.0,120650.0,0.25684361]
[1754911949989,1.79553916,120660.0,120650.0,0.25684361]
[1754911950195,0.0829071,120630.0,120620.0,0.41427]
[1754911950393,1.0872771,120630.0,120620.0,0.52805]
[1754911950596,1.0872771,120630.0,120620.0,0.82139035]
[1754911950794,1.0873571,120630.0,120620.0,0.82135739]
[1754911950992,1.00445,120630.0,120620.0,0.90427139]
[1754911951293,0.4107257,120640.0,120620.0,1.33622475]
[1754911951492,1.2531857,120640.0,120630.0,0.3608]
[1754911951694,1.1702789,120640.0,120630.0,0.52805]
[1754911951887,1.1702789,120640.0,120630.0,0.21690947]
[1754911951888,1.03776166,120640.0,120630.0,0.21690947]
[1754911952095,0.6887189,120640.0,120630.0,0.12391377]
[1754911952404,0.1658476,120610.0,120590.0,0.41012048]
[1754911952696,1.40320056,120600.0,120590.0,0.50559547]
[1754911952891,1.0541178,120600.0,120590.0,0.62924026]
[1754911953092,0.2113578,120600.0,120590.0,0.66291494]
[1754911953393,1.40452056,120600.0,120590.0,0.56743995]
[1754911953697,1.40452056,120600.0,120590.0,0.12574527]
[1754911954097,1.47126315,120600.0,120590.0,0.12574527]
[1754911954297,1.47226315,120600.0,120590.0,0.12674527]
[1754911954498,0.62754315,120600.0,120590.0,0.12674527]
[1754911954700,1.47090315,120600.0,120590.0,0.12574527]
[1754911955011,1.47590315,120600.0,120590.0,0.12674527]
[1754911955201,1.47578315,120600.0,120590.0,0.12674527]
[1754911955399,0.28250039,120600.0,120590.0,0.12674527]
[1754911955599,1.08022039,120600.0,120590.0,0.83348683]
[1754911955900,0.15333259,120600.0,120590.0,0.91642153]
[1754911956097,0.91518259,120600.0,120590.0,0.91642153]
[1754911956296,0.07114259,120600.0,120590.0,1.26546429]
[1754911956491,0.07114259,120600.0,120590.0,1.43131229]
[1754911956695,0.07414259,120600.0,120590.0,1.26346429]
[1754911956896,0.07414259,120600.0,120590.0,0.91442153]
[1754911957295,0.008,120600.0,120590.0,1.26346429]
[1754911957492,0.0001,120610.0,120590.0,1.59517729]
[1754911957802,0.9262207,120610.0,120600.0,0.52805]
[1754911958002,0.57304346,120610.0,120600.0,0.41002]
[1754911958203,0.63815899,120610.0,120600.0,0.53474454]
[1754911958503,1.48123899,120610.0,120600.0,0.61765984]
[1754911958904,1.48123899,120610.0,120600.0,0.73568984]
[1754911958905,1.13319623,120610.0,120600.0,0.73568984]
[1754911959301,0.24387623,120610.0,120600.0,0.82782332]
[1754911959492,1.08623623,120610.0,120600.0,0.82782332]
[1754911959897,0.63915899,120610.0,120600.0,0.66057332]
[1754911960099,1.48151899,120610.0,120600.0,0.56843984]
[1754911960305,1.48151899,120610.0,120600.0,0.61765984]
[1754911960498,0.99995899,120610.0,120600.0,0.20763984]
[1754911960705,0.0829276,120600.0,120590.0,0.00810048]
[1754911960903,0.84835036,120600.0,120590.0,0.00810048]
[1754911961100,2.83631036,120600.0,120590.0,0.12763524]
[1754911961300,2.83631036,120600.0,120590.0,0.12463524]
[1754911961998,0.0829483,120570.0,120560.0,0.3608]
[1754911962198,0.2488769,120560.0,120550.0,0.41002]
[1754911962512,1.4499676,120560.0,120550.0,0.63257742]
[1754911962801,1.4496876,120560.0,120550.0,0.56801742]
[1754911963001,1.4496876,120560.0,120550.0,0.61723742]
[1754911963002,0.6090076,120560.0,120550.0,0.61723742]
[1754911963201,0.59801966,120560.0,120550.0,0.25643742]
[1754911963503,0.2489769,120560.0,120550.0,0.46383696]
[1754911963701,1.0896569,120560.0,120550.0,0.82463696]
[1754911964104,0.9247366,120560.0,120550.0,0.82563696]
[1754911964605,1.5011,120560.0,120550.0,1.25764172]
[1754911964808,2.34122,120560.0,120550.0,1.25764172]
[1754911964999,1.5011,120560.0,120550.0,0.90859896]
[1754911965200,2.4238152,120560.0,120550.0,0.91059896]
[1754911965405,2.4238152,120560.0,120550.0,0.82763696]
[1754911965607,2.4238152,120560.0,120550.0,0.91159906]
[1754911965806,2.4238152,120560.0,120550.0,0.82863696]
[1754911966011,1.93309796,120560.0,120550.0,0.82863696]
[1754911966305,2.77285796,120560.0,120550.0,0.34980696]
[1754911966811,1.5840552,120560.0,120550.0,0.46783696]
[1754911967011,2.4254552,120560.0,120550.0,0.35180696]
[1754911967210,2.77597796,120560.0,120550.0,0.71260696]
[1754911967414,2.77597796,120560.0,120550.0,0.83544696]
[1754911967613,2.4269352,120560.0,120550.0,0.83444696]
[1754911967910,2.4269352,120560.0,120550.0,0.77686696]
[1754911968106,2.4269352,120560.0,120550.0,0.77586696]
[1754911969102,2.4269352,120560.0,120550.0,0.34980696]
[1754911969309,2.4269352,120560.0,120550.0,0.26043742]
[1754911970009,2.4269352,120560.0,120550.0,0.25843742]
[1754911970010,1.5855352,120560.0,120550.0,0.25843742]
[1754911970309,2.4263352,120560.0,120550.0,0.25843742]
[1754911970505,2.4261352,120560.0,120550.0,0.25843742]
[1754911970712,1.5855352,120560.0,120550.0,0.74207742]
[1754911970909,2.4259752,120560.0,120550.0,0.74007742]
[1754911971112,2.4259752,120560.0,120550.0,0.74107742]
[1754911971309,2.4269752,120560.0,120550.0,0.74107742]
[1754911971916,1.5858552,120560.0,120550.0,1.26258116]
[1754911972111,2.4252952,120560.0,120550.0,1.26258116]
[1754911972415,0.9244952,120560.0,120550.0,1.26258116]
[1754911972608,0.9244952,120560.0,120550.0,1.26158116]
[1754911972814,0.9244952,120560.0,120550.0,1.26358116]
[1754911973009,0.9235753,120560.0,120550.0,1.26358116]
[1754911973310,0.0001,120560.0,120550.0,1.42747716]
[1754911973512,0.9230153,120560.0,120550.0,0.8325762]
[1754911973713,0.9245353,120560.0,120550.0,0.8325762]
[1754911973916,1.5855353,120560.0,120550.0,0.8325762]
[1754911974216,0.0855353,120560.0,120550.0,0.8325762]
[1754911974416,0.9235753,120560.0,120550.0,0.8295762]
[1754911974610,0.9245753,120560.0,120550.0,0.8345762]
[1754911974916,0.0855353,120560.0,120550.0,0.7779962]
[1754911975118,0.9234953,120560.0,120550.0,0.8355762]
[1754911975512,0.0855353,120560.0,120550.0,0.8355762]
[1754911975713,0.9233353,120560.0,120550.0,0.9175384]
[1754911975914,0.9233353,120560.0,120550.0,0.8345762]
[1754911976114,0.9225353,120560.0,120550.0,0.8325762]
[1754911976409,0.9225353,120560.0,120550.0,0.9155384]
[1754911976823,0.0840553,120560.0,120550.0,1.26358116]
[1754911977014,0.9218953,120560.0,120550.0,1.26358116]
[1754911977521,0.02073,120570.0,120550.0,1.82854382]
[1754911977826,0.18663,120570.0,120560.0,0.6139953]
[1754911978026,0.18663,120570.0,120560.0,0.96303806]
[1754911978224,0.1659,120570.0,120560.0,1.3489739]
[1754911978426,0.1659,120570.0,120560.0,1.43191671]
[1754911978921,1.00346,120570.0,120560.0,0.83403066]
[1754911979119,1.00356,120570.0,120560.0,0.91708596]
[1754911979522,1.0046,120570.0,120560.0,0.83413066]
[1754911979720,1.0056,120570.0,120560.0,0.83813066]
[1754911980030,1.00492,120570.0,120560.0,0.92108596]
[1754911980325,1.35456276,120570.0,120560.0,0.71529066]
[1754911980543,1.71606276,120570.0,120560.0,0.30709066]
[1754911980822,1.71606276,120570.0,120560.0,0.27688613]
[1754911981024,1.71606276,120570.0,120560.0,0.27788613]
[1754911981425,1.09531076,120570.0,120560.0,0.27788613]
[1754911981627,1.09531076,120570.0,120560.0,0.01555183]
[1754911981829,1.93200253,120570.0,120560.0,3e-08]
[1754911982024,1.93200253,120570.0,120560.0,0.12482489]
[1754911982233,0.0829691,120540.0,120530.0,0.6819479]
[1754911982525,0.8362,120540.0,120530.0,1.54355821]
[1754911982730,0.8362,120540.0,120530.0,1.79754502]
[1754911983029,0.0001,120540.0,120530.0,1.48609703]
[1754911983230,0.0830691,120540.0,120530.0,1.63169302]
[1754911983431,0.0001,120540.0,120530.0,1.63169302]
[1754911983627,0.0829633,120550.0,120530.0,1.79754062]
[1754911983833,0.0829622,120550.0,120540.0,1.09148639]
[1754911984036,0.0829622,120550.0,120540.0,0.53104]
[1754911984325,0.0829622,120550.0,120540.0,0.74409763]
[1754911984521,0.0829622,120550.0,120540.0,0.9100233]
[1754911984725,0.9187222,120550.0,120540.0,0.9100233]
[1754911984926,0.9188222,120550.0,120540.0,0.9101233]
[1754911985124,0.9188222,120550.0,120540.0,0.8271542]
[1754911985328,0.9183822,120550.0,120540.0,0.8271542]
[1754911985632,0.9193822,120550.0,120540.0,0.8271542]
[1754911986024,0.9203822,120550.0,120540.0,0.8281542]
[1754911986531,0.9183822,120550.0,120540.0,0.9101233]
[1754911986724,0.9203822,120550.0,120540.0,0.9111233]
[1754911987429,0.9203822,120550.0,120540.0,1.05969033]
[1754911987631,0.0850622,120550.0,120540.0,1.05969033]
[1754911987827,0.9193822,120550.0,120540.0,1.05969033]
[1754911988131,0.9193822,120550.0,120540.0,0.9121233]
[1754911988732,0.9193822,120550.0,120540.0,1.22267129]
[1754911989032,0.9183822,120550.0,120540.0,1.22467129]
[1754911989234,0.9183822,120550.0,120540.0,0.8301542]
[1754911989629,0.9183822,120550.0,120540.0,0.9121233]
[1754911989929,0.9183822,120550.0,120540.0,0.9131233]
[1754911990324,0.0840622,120550.0,120540.0,0.8301542]
[1754911990524,0.9168222,120550.0,120540.0,0.8301542]
[1754911991128,0.0840622,120550.0,120540.0,0.8301542]
[1754911991430,0.9168222,120550.0,120540.0,0.9131233]
[1754911992227,0.9168222,120550.0,120540.0,0.8301542]
[1754911992418,0.9168222,120550.0,120540.0,0.9131233]
[1754911992624,0.9168222,120550.0,120540.0,0.8301542]
[1754911992820,0.9168222,120550.0,120540.0,0.9131233]
[1754911993025,0.9168222,120550.0,120540.0,0.97872123]
[1754911993227,0.0840622,120550.0,120540.0,1.17236033]
[1754911993428,0.9156622,120550.0,120540.0,1.08939123]
[1754911993829,0.0840622,120550.0,120540.0,1.08939123]
[1754911994133,0.9153422,120550.0,120540.0,1.08939123]
[1754911994334,0.9153422,120550.0,120540.0,1.17236033]
[1754911994634,0.9153422,120550.0,120540.0,0.9408242]
[1754911994930,0.9155122,120550.0,120540.0,0.9408242]
[1754911996223,0.9139122,120550.0,120540.0,0.9408242]
[1754911996936,0.0840622,120550.0,120540.0,1.25237219]
[1754911997133,0.9131422,120550.0,120540.0,1.08939123]
[1754911997332,0.0842322,120550.0,120540.0,1.08939123]
[1754911997536,0.9131122,120550.0,120540.0,1.08939123]
[1754911997735,0.0842322,120550.0,120540.0,1.17236033]
[1754911997936,0.9129922,120550.0,120540.0,1.08939123]
[1754911998329,0.9129922,120550.0,120540.0,1.17236033]
[1754911998525,0.9129922,120550.0,120540.0,1.08939123]
[1754911998731,0.0842322,120550.0,120540.0,1.08939123]
[1754911998927,0.0842322,120550.0,120540.0,1.03181123]
[1754911999127,0.0843322,120550.0,120540.0,0.76798945]
[1754911999533,0.9121322,120550.0,120540.0,0.61942242]
[1754911999838,0.9121322,120550.0,120540.0,0.68644242]
[1754912000139,0.0843322,120550.0,120540.0,0.68644242]
[1754912000336,0.9116122,120550.0,120540.0,0.61942242]
[1754912001237,0.9116522,120550.0,120540.0,0.76798945]
[1754912001830,0.0843322,120550.0,120540.0,0.76798945]
[1754912002031,0.39588019,120550.0,120540.0,0.12826585]
[1754912002227,1.40908219,120550.0,120540.0,0.12826585]
[1754912002634,1.24317019,120550.0,120540.0,0.12826585]
[1754912002838,0.77741019,120550.0,120540.0,0.12826585]
[1754912003036,1.81948219,120550.0,120540.0,0.12826585]
[1754912003631,1.81948219,120550.0,120540.0,0.04517791]
[1754912003841,1.81948219,120550.0,120520.0,0.14864437]
[1754912003842,0.082976,120530.0,120520.0,0.34229069]
[1754912004038,1.22060399,120530.0,120520.0,0.34229069]
[1754912004237,0.79251196,120530.0,120520.0,0.46730569]
[1754912004435,1.61855196,120530.0,120520.0,0.46730569]
[1754912004836,1.61861653,120530.0,120520.0,0.46730569]
[1754912005038,1.61971653,120530.0,120520.0,0.47240569]
[1754912005241,1.61939653,120530.0,120520.0,0.13219234]
[1754912005442,1.61939653,120530.0,120520.0,0.28111859]
[1754912006044,1.61939653,120530.0,120520.0,0.27911859]
[1754912006244,1.27366057,120530.0,120520.0,0.17912234]
[1754912006445,1.62239653,120530.0,120520.0,0.17912234]
[1754912006741,1.62107653,120530.0,120520.0,0.17412234]
[1754912006937,1.62607653,120530.0,120520.0,0.32404859]
[1754912007338,0.80067653,120530.0,120520.0,0.32404859]
[1754912007639,1.62751653,120530.0,120520.0,0.32404859]
[1754912009544,1.62751653,120530.0,120520.0,0.27511859]
[1754912009944,1.62751653,120530.0,120520.0,0.32404859]
[1754912010144,1.62751653,120530.0,120520.0,0.17512234]
[1754912010746,1.62647653,120530.0,120520.0,0.17512234]
[1754912011442,0.80067653,120530.0,120520.0,0.17512234]
[1754912011643,1.62579653,120530.0,120520.0,0.12619234]
[1754912011845,1.62579653,120530.0,120520.0,0.0187707]
[1754912011846,0.98540895,120530.0,120520.0,0.0187707]
[1754912012043,1.80996895,120530.0,120520.0,0.0187707]
[1754912012344,1.80996895,120530.0,120500.0,0.24257632]
[1754912012345,0.0829897,120510.0,120500.0,0.24257632]
[1754912012539,1.25628566,120510.0,120500.0,0.24257632]
[1754912012741,1.25776566,120510.0,120500.0,0.36685729]
[1754912012942,1.25776566,120510.0,120500.0,0.5155643]
[1754912013542,1.93968566,120510.0,120500.0,0.27298798]
[1754912013743,1.93978566,120510.0,120500.0,0.12438097]
[1754912013940,0.0830038,120490.0,120480.0,0.40973]
[1754912014147,1.11630484,120490.0,120480.0,0.40973]
[1754912014356,1.61817173,120490.0,120480.0,0.17262964]
[1754912014748,0.80896699,120490.0,120480.0,0.17262964]
[1754912014951,1.63492699,120490.0,120480.0,0.17262964]
[1754912015148,1.63582699,120490.0,120480.0,0.17472964]
[1754912015348,1.65656699,120490.0,120480.0,0.36793346]